bitfinex/quotes_ETHUSD_20241203
["timestamp","ask_amount","ask_price","bid_price","bid_amount"]
[1733254438425,0.55,3573.2,3572.3,0.66163788]
[1733254438625,0.25982434,3573.1,3572.3,0.66163788]
[1733254438825,0.55,3573.0,3572.3,0.66163788]
[1733254439340,0.25982434,3573.0,3572.3,0.66163788]
[1733254439659,2.79848,3573.4,3572.4,3.22703167]
[1733254439863,0.80982434,3573.3,3572.4,3.22703167]
[1733254440159,2.79848,3573.4,3572.4,3.22703167]
[1733254440160,0.26014748,3573.2,3572.4,0.42780167]
[1733254440319,0.26014748,3573.1,3572.4,0.42780167]
[1733254440522,0.55,3573.2,3572.3,3.46091788]
[1733254440722,0.26014748,3573.1,3572.3,3.46091788]
[1733254440953,0.26014748,3573.0,3572.3,3.46091788]
[1733254441154,0.26014748,3572.9,3572.3,0.66163788]
[1733254441324,0.26014748,3572.9,3571.7,2.79974]
[1733254441325,0.26014748,3572.8,3571.9,6.46556882]
[1733254441521,0.55,3573.4,3571.9,6.46556882]
[1733254441522,0.26014748,3572.7,3572.0,2.79951]
[1733254441769,0.26014748,3572.6,3572.0,2.79951]
[1733254441927,0.26014748,3572.5,3571.9,0.8322]
[1733254442123,3.0,3573.3,3571.5,2.79989]
[1733254442124,0.26014748,3572.4,3571.5,0.7555]
[1733254442470,0.26014748,3572.3,3571.6,2.79984]
[1733254442622,0.26014748,3572.3,3571.5,0.7555]
[1733254442825,0.26014748,3572.2,3571.6,2.83377882]
[1733254443141,0.26014748,3572.6,3571.8,2.79968]
[1733254443336,0.26014748,3572.5,3571.6,2.83377882]
[1733254443536,0.26014748,3572.4,3571.9,2.79962]
[1733254443884,0.26014748,3572.3,3571.7,3.15867788]
[1733254444024,0.26014748,3572.2,3571.7,2.79975]
[1733254444234,0.26014748,3572.5,3571.7,2.79975]
[1733254444429,0.26014748,3572.4,3571.7,2.79975]
[1733254444629,0.26014748,3572.3,3571.6,2.83377882]
[1733254444827,0.26014748,3572.3,3571.3,2.83377882]
[1733254444828,0.81014748,3572.2,3571.3,2.83377882]
[1733254445038,0.26014748,3572.1,3571.3,2.83377882]
[1733254445243,0.26014748,3572.0,3571.6,2.79983]
[1733254445444,0.26014748,3572.1,3571.6,2.79983]
[1733254445649,0.26014748,3572.0,3571.3,2.86177681]
[1733254445934,0.26014748,3572.1,3571.6,2.79979]
[1733254446152,0.55,3572.5,3571.4,0.36747768]
[1733254446338,0.26050495,3572.4,3571.7,3.62188]
[1733254446675,0.26050495,3572.3,3571.7,3.62188]
[1733254446831,0.26050495,3572.2,3571.7,3.62188]
[1733254447029,3.34901,3572.7,3571.7,3.62188]
[1733254447364,0.2605404,3572.6,3571.7,3.65587882]
[1733254447632,0.2605404,3572.5,3572.1,2.79945]
[1733254447788,0.2605404,3572.4,3572.1,2.79945]
[1733254447935,2.79864,3573.2,3572.1,2.79945]
[1733254448140,0.26057281,3573.1,3571.7,3.65587882]
[1733254448339,0.26057281,3573.0,3572.1,0.795]
[1733254448578,0.26057281,3572.9,3572.3,2.79169126]
[1733254448778,0.26057281,3572.8,3572.3,2.79169126]
[1733254448986,0.26057281,3572.7,3572.6,2.79906]
[1733254449276,0.26057281,3573.5,3572.7,3.59399]
[1733254449486,0.2605799,3573.4,3572.7,3.59399]
[1733254449785,0.2605799,3573.3,3572.7,3.59399]
[1733254449955,0.2605799,3573.2,3572.7,3.59399]
[1733254450159,0.2605799,3573.1,3572.7,3.59399]
[1733254450353,0.2605799,3573.0,3572.7,3.59399]
[1733254450572,0.2605799,3572.9,3572.7,3.59399]
[1733254450747,0.2923574,3573.4,3572.7,3.59399]
[1733254450947,0.26050693,3573.3,3572.7,3.59399]
[1733254451172,0.26050693,3573.2,3572.7,3.59399]
[1733254451484,0.26050693,3573.1,3572.7,3.59399]
[1733254451644,0.26050693,3573.0,3572.7,3.59399]
[1733254451845,0.2923574,3573.4,3572.7,3.59399]
[1733254451846,0.26050693,3572.9,3572.7,0.795]
[1733254452048,0.2923574,3573.4,3572.6,2.79907]
[1733254452345,0.26048209,3573.3,3572.6,2.79907]
[1733254452545,0.26048209,3573.2,3572.6,2.79907]
[1733254452843,0.26048209,3573.1,3572.5,0.02798874]
[1733254453048,0.26048209,3573.0,3572.8,2.79891]
[1733254453246,0.26050548,3573.3,3572.7,2.83377882]
[1733254453471,0.26050548,3573.2,3573.0,2.79875]
[1733254453683,0.26050548,3573.2,3572.8,0.8104]
[1733254453684,0.75,3573.7,3573.1,2.79869]
[1733254453994,0.75,3573.7,3572.5,1.46361276]
[1733254453995,3.05877908,3573.6,3572.5,1.46361276]
[1733254454190,0.75,3573.7,3572.5,1.46361276]
[1733254454191,0.64134699,3573.5,3572.5,1.46361276]
[1733254454356,0.26046908,3573.4,3572.7,2.799]
[1733254454556,0.75,3573.7,3572.7,2.799]
[1733254454557,0.26046908,3573.3,3572.7,2.799]
[1733254454763,0.26046908,3573.2,3572.0,5.83377882]
[1733254455057,0.26046908,3573.1,3572.6,2.79908]
[1733254455259,0.26046908,3573.0,3572.6,2.79908]
[1733254455472,0.26046908,3572.9,3572.6,2.79908]
[1733254455673,0.55,3573.6,3572.6,2.79908]
[1733254455981,0.26052855,3573.5,3572.1,3.55287]
[1733254456188,3.21508141,3573.4,3572.1,1.69206488]
[1733254456359,0.26052855,3573.3,3572.6,2.79907]
[1733254456563,0.26062796,3573.2,3572.1,4.49148488]
[1733254456765,0.26062796,3573.2,3572.5,2.79915]
[1733254456965,0.26062796,3573.1,3572.5,2.79915]
[1733254457174,0.26062796,3573.0,3572.5,2.79915]
[1733254457371,0.26062796,3572.9,3572.6,2.79907]
[1733254457597,0.26062796,3572.8,3572.4,2.83377882]
[1733254457750,0.55,3573.6,3572.8,2.79892]
[1733254457957,0.2606706,3573.5,3572.8,2.79892]
[1733254458159,0.2606706,3573.4,3572.6,2.79905]
[1733254458485,0.55,3573.6,3572.4,2.83377882]
[1733254458486,0.2606706,3573.3,3572.4,2.83377882]
[1733254458654,0.2606706,3573.2,3572.7,2.79896]
[1733254458863,0.2606706,3573.1,3572.7,2.79896]
[1733254459069,0.2606706,3573.0,3572.7,2.79896]
[1733254459267,0.409828,3573.5,3572.7,2.79896]
[1733254459268,0.2606706,3572.9,3572.7,2.79896]
[1733254459471,0.409828,3573.5,3572.7,2.79896]
[1733254459704,0.26074751,3573.4,3572.7,2.79896]
[1733254459905,0.26074751,3573.3,3572.7,2.79896]
[1733254460144,0.26074751,3573.2,3572.9,0.7892]
[1733254460309,0.26082704,3573.2,3573.0,2.79875]
[1733254460514,0.26082704,3573.1,3572.9,0.7892]
[1733254460674,0.26082704,3573.0,3572.9,3.58802]
[1733254461174,0.26082704,3573.0,3572.9,4.51010388]
[1733254462769,0.26082704,3573.0,3572.9,3.58802]
[1733254463272,0.75,3573.7,3572.9,3.58802]
[1733254463473,0.26100422,3573.6,3572.9,3.58802]
[1733254463697,0.26100422,3573.5,3572.9,3.58802]
[1733254463901,0.26100422,3573.4,3572.9,3.58802]
[1733254464070,0.26100422,3573.3,3572.9,3.58802]
[1733254464269,0.26100422,3573.2,3572.9,3.58802]
[1733254464467,0.26100422,3573.1,3572.9,3.58802]
[1733254464672,0.75,3573.7,3572.9,3.58802]
[1733254464874,0.26096824,3573.6,3573.0,2.79875]
[1733254465125,0.26096824,3573.5,3573.0,2.79875]
[1733254465284,0.26096824,3573.4,3573.0,2.79875]
[1733254465473,0.26096824,3573.3,3573.0,2.79875]
[1733254465674,0.26096824,3573.2,3572.9,0.7892]
[1733254465910,0.75,3573.7,3572.7,0.8153]
[1733254465911,0.26096824,3573.1,3572.7,0.8153]
[1733254466215,0.75,3573.7,3572.5,3.0]
[1733254466447,0.26094412,3573.6,3572.7,2.79893]
[1733254466628,0.26094412,3573.5,3572.8,2.79891]
[1733254466807,0.26094412,3573.4,3572.9,2.79882]
[1733254467005,0.75,3573.7,3572.9,2.79882]
[1733254467006,0.26094412,3573.3,3572.9,2.79882]
[1733254467206,0.2609231,3573.2,3572.9,2.79882]
[1733254467407,0.2609231,3573.1,3572.9,2.79882]
[1733254467745,0.75,3573.7,3572.7,2.79897]
[1733254468045,3.60927343,3573.6,3572.5,3.0]
[1733254468347,0.69685077,3573.5,3572.6,2.79901]
[1733254468509,0.26092343,3573.4,3572.5,3.02798846]
[1733254468718,0.26092343,3573.3,3572.5,3.02798846]
[1733254468913,0.26092343,3573.2,3572.6,0.7974]
[1733254469113,0.26092343,3573.1,3573.0,2.79871]
[1733254471542,0.26092343,3573.1,3572.5,3.0]
[1733254471543,3.05961343,3573.1,3572.2,3.59776]
[1733254471747,0.56688477,3573.0,3572.2,0.7984]
[1733254471905,0.29234276,3573.4,3572.4,2.83377882]
[1733254471906,0.26092343,3572.9,3572.4,2.83377882]
[1733254472112,0.29234276,3573.4,3571.4,3.2012565]
[1733254472113,0.26095678,3573.3,3573.0,2.79874]
[1733254472326,0.26095678,3573.2,3573.0,2.79874]
[1733254472526,0.29234276,3573.4,3573.0,0.64309188]
[1733254472818,0.29234276,3573.4,3573.2,2.79861]
[1733254472819,0.26104393,3573.3,3573.2,2.79861]
[1733254473511,0.26104393,3573.3,3573.0,0.64309188]
[1733254473512,0.75,3573.7,3573.0,0.64309188]
[1733254473716,0.26108151,3573.6,3573.4,2.79838]
[1733254474057,0.75,3573.7,3573.5,0.0279828]
[1733254474249,0.75,3573.7,3573.6,5.9979121]
[1733254474410,0.75,3573.7,3573.6,9.8021121]
[1733254475456,0.26108974,3574.9,3574.3,2.79772]
[1733254475604,0.26108974,3574.8,3574.3,0.762]
[1733254475808,0.26108974,3574.7,3574.1,2.83377882]
[1733254476103,0.26108974,3575.0,3574.2,2.79782]
[1733254476307,0.26108974,3574.9,3574.2,2.79782]
[1733254476548,0.26108974,3574.8,3574.1,0.762]
[1733254476747,0.26108974,3574.7,3574.1,0.762]
[1733254476918,3.12162092,3575.0,3574.1,0.762]
[1733254476919,0.26108974,3574.6,3574.1,3.762]
[1733254477123,0.26108974,3574.9,3574.1,3.762]
[1733254477324,0.26108974,3574.9,3574.1,3.0]
[1733254477325,0.26108974,3574.8,3574.1,3.0]
[1733254477531,0.26108974,3574.7,3573.9,3.0]
[1733254477860,0.26080175,3574.6,3573.8,0.7641]
[1733254478011,0.26080175,3574.5,3573.8,3.56223]
[1733254478211,0.26080175,3574.8,3573.8,4.5374797]
[1733254478405,0.26080175,3574.7,3573.8,4.5374797]
[1733254478648,0.26080175,3574.6,3574.1,2.83377882]
[1733254478955,0.26080175,3575.0,3573.8,4.5374797]
[1733254479111,2.79752,3574.6,3573.6,3.57858]
[1733254479312,0.26080175,3574.5,3573.6,0.7803]
[1733254479506,0.26080175,3574.5,3573.6,3.7803]
[1733254479827,0.26080175,3574.5,3573.8,2.79811]
[1733254480025,3.34736,3574.8,3573.7,5.63196882]
[1733254480336,0.62161793,3574.7,3573.7,5.63196882]
[1733254480649,0.26080175,3574.7,3574.2,2.79782]
[1733254480812,0.26080175,3575.0,3574.2,2.79782]
[1733254481008,0.26080175,3574.9,3574.4,2.7976]
[1733254481247,0.1548778,3575.1,3574.2,3.7897]
[1733254481408,0.1548778,3575.1,3574.3,2.79773]
[1733254481911,0.1548778,3575.1,3574.4,2.79764]
[1733254482126,0.1548778,3575.1,3574.2,3.7897]
[1733254482458,0.41549984,3575.1,3574.4,2.79766]
[1733254482608,0.1548778,3575.1,3574.4,2.79766]
[1733254482953,0.1548778,3575.1,3574.5,2.79757]
[1733254483317,0.1548778,3575.1,3574.4,2.83377882]
[1733254483517,0.1548778,3575.1,3574.5,2.79757]
[1733254484336,0.1548778,3575.1,3574.4,2.83377882]
[1733254484719,0.1548778,3575.1,3574.4,5.63142882]
[1733254485226,0.1548778,3575.1,3574.2,4.52964188]
[1733254485374,0.1548778,3575.1,3574.2,0.94213188]
[1733254485740,0.1548778,3575.1,3574.2,3.73994188]
[1733254485933,3.30249692,3575.1,3574.1,3.0]
[1733254486180,2.79721,3575.0,3574.0,2.79796]
[1733254486485,0.26017337,3574.9,3573.9,3.61514]
[1733254486637,2.79723,3575.0,3573.9,3.61514]
[1733254486843,2.7973,3574.9,3573.9,3.61514]
[1733254487146,0.29521778,3574.9,3573.9,0.8171]
[1733254487331,0.29521778,3574.9,3574.1,2.79783]
[1733254487535,0.1548778,3575.1,3574.1,2.79783]
[1733254487536,0.41506911,3575.1,3574.1,2.79783]
[1733254487736,0.41506911,3575.1,3574.2,2.82579628]
[1733254487972,0.41506911,3575.1,3574.3,2.83377882]
[1733254488181,0.1548778,3575.1,3574.4,2.82563385]
[1733254488389,0.1548778,3575.1,3574.5,0.7999]
[1733254489277,0.1548778,3575.1,3574.5,3.59746]
[1733254489483,0.1548778,3575.1,3574.5,0.7999]
[1733254491793,2.9520078,3575.1,3574.1,3.0]
[1733254492095,2.9520078,3575.1,3574.1,6.46401788]
[1733254492756,0.1548778,3575.1,3574.1,0.66611788]
[1733254493076,0.1548778,3575.1,3574.0,2.83377882]
[1733254493295,0.1548778,3575.1,3574.2,2.79781]
[1733254493460,0.41505018,3575.1,3574.2,2.79781]
[1733254493658,0.41505018,3575.1,3574.0,5.63173882]
[1733254493961,0.1548778,3575.1,3574.0,5.63173882]
[1733254494187,0.1548778,3575.1,3574.0,6.2776527]
[1733254494703,2.79735,3574.9,3574.0,3.4796927]
[1733254495292,0.29222817,3574.8,3573.9,3.62544]
[1733254495681,0.29222817,3574.8,3574.1,2.79789]
[1733254496005,0.29222817,3574.8,3574.2,2.7978]
[1733254496511,0.29222817,3574.8,3573.9,0.8274]
[1733254496801,0.29222817,3574.8,3574.1,2.79787]
[1733254496972,0.29222817,3574.8,3574.0,2.79795]
[1733254497161,0.29222817,3574.8,3574.0,4.02368088]
[1733254498968,0.29222817,3574.8,3574.0,1.22573088]
[1733254499165,0.55286655,3574.8,3574.0,1.22573088]
[1733254499385,0.55286655,3574.8,3573.8,3.0]
[1733254499588,0.29222817,3574.8,3574.2,2.79775]
[1733254499791,0.29222817,3574.8,3574.5,2.79754]
[1733254499992,0.29222817,3574.8,3574.3,2.83377882]
[1733254500236,0.29222817,3574.8,3574.7,2.79743]
[1733254500503,0.1548778,3575.1,3574.8,2.7973]
[1733254500712,0.1548778,3575.1,3574.1,0.7754]
[1733254501006,0.26063838,3575.0,3574.3,2.79767]
[1733254501168,0.1548778,3575.1,3574.3,2.79767]
[1733254501169,0.26063838,3574.9,3574.3,2.79767]
[1733254501362,0.261098,3574.8,3574.3,3.454977]
[1733254501567,0.261098,3574.7,3574.3,0.657307]
[1733254501769,0.1548778,3575.1,3574.3,0.657307]
[1733254502087,0.2611059,3575.0,3574.3,0.657307]
[1733254502279,0.2611059,3574.9,3574.3,0.657307]
[1733254502466,0.2611059,3574.8,3574.3,0.657307]
[1733254502798,0.2611059,3574.7,3574.3,0.657307]
[1733254502988,0.1548778,3575.1,3574.3,3.455007]
[1733254503186,0.26133956,3575.0,3574.3,0.657307]
[1733254503490,0.1548778,3575.1,3574.3,0.657307]
[1733254503491,0.26133956,3574.9,3574.3,0.657307]
[1733254503695,0.26133956,3574.8,3574.3,0.657307]
[1733254503867,0.26133956,3574.7,3574.3,0.657307]
[1733254504086,0.26133956,3574.6,3574.3,0.657307]
[1733254504289,0.1548778,3575.1,3574.4,0.1432707]
[1733254504503,0.26160626,3575.0,3574.4,2.9409107]
[1733254504705,0.26160626,3574.9,3574.4,2.9409107]
[1733254504893,0.1548778,3575.1,3574.4,2.9409107]
[1733254505106,0.26167155,3574.8,3574.4,0.1432707]
[1733254505311,0.26167155,3574.7,3574.5,0.29770495]
[1733254505507,0.1548778,3575.1,3574.5,0.29770495]
[1733254505508,0.26165444,3574.6,3574.5,0.29770495]
[1733254506020,0.1548778,3575.1,3574.6,0.785]
[1733254506242,0.26164143,3575.0,3574.9,2.79728]
[1733254506704,0.1548778,3575.1,3575.0,5.7972]
[1733254506879,0.1548778,3575.1,3575.0,6.94002588]
[1733254507311,0.1548778,3575.1,3575.0,9.7738047]
[1733254507682,0.1548778,3575.1,3575.0,10.5888047]
[1733254513083,0.1548778,3575.1,3575.0,7.7916047]
[1733254513287,0.1548778,3575.1,3575.0,4.14282588]
[1733254513495,0.1548778,3575.1,3575.0,1.14282588]
[1733254514601,0.1548778,3575.1,3574.4,2.9409207]
[1733254515021,0.1548778,3575.1,3574.7,2.79736]
[1733254515329,0.1548778,3575.1,3574.7,2.82533148]
[1733254515687,0.1548778,3575.1,3575.0,5.63097882]
[1733254515895,0.1548778,3575.1,3575.0,6.27970385]
[1733254516639,0.1548778,3575.1,3575.0,9.27970385]
[1733254516924,0.1548778,3575.1,3575.0,0.64872503]
[1733254517132,0.1548778,3575.1,3574.7,3.0]
[1733254517989,0.1548778,3575.1,3574.4,2.9409007]
[1733254517990,0.1548778,3575.1,3574.4,0.1432707]
[1733254518403,0.02480593,3575.0,3574.4,0.1432707]
[1733254519411,2.79747,3574.7,3573.7,2.79814]
[1733254519608,0.57480593,3575.0,3573.6,2.83377882]
[1733254519809,0.0246585,3574.6,3573.7,2.79822]
[1733254520015,0.26092574,3574.9,3573.9,2.83377882]
[1733254520220,0.26092574,3575.0,3573.2,0.7797]
[1733254520566,3.63281168,3574.9,3573.4,2.79843]
[1733254520841,0.55,3574.7,3573.4,2.83377882]
[1733254521039,0.55,3574.5,3573.6,2.79829]
[1733254521347,0.55,3574.5,3573.8,2.79813]
[1733254521348,0.26092574,3574.5,3573.8,2.79813]
[1733254521507,0.55,3574.7,3573.8,3.60623]
[1733254521711,0.26092574,3574.6,3573.8,0.8081]
[1733254522032,0.26092574,3574.6,3573.7,3.56320688]
[1733254522234,0.26092574,3574.5,3573.7,3.56320688]
[1733254522410,0.26092574,3574.6,3573.7,3.56320688]
[1733254522795,2.798,3574.0,3572.9,2.79879]
[1733254522951,3.34806,3573.9,3572.6,0.8251]
[1733254523162,0.36083657,3574.6,3573.1,2.83377882]
[1733254523308,0.26073758,3574.5,3573.6,2.79822]
[1733254523646,0.55,3574.6,3573.6,2.79822]
[1733254523851,0.26073758,3574.5,3573.6,2.79822]
[1733254524211,0.55,3574.6,3573.6,2.79822]
[1733254524508,0.55,3574.6,3573.4,2.83377882]
[1733254524509,3.60826758,3574.6,3573.4,2.79843]
[1733254524714,0.26073758,3574.5,3573.5,3.69657679]
[1733254525211,3.05832758,3574.5,3573.5,0.69657679]
[1733254525406,2.79759,3574.5,3573.5,0.69657679]
[1733254525608,0.55,3574.6,3573.5,0.69657679]
[1733254525836,0.55,3574.6,3573.2,3.96591788]
[1733254526153,0.26069012,3574.6,3573.8,2.79812]
[1733254526351,0.26069012,3574.8,3573.8,2.79812]
[1733254527863,0.26069012,3574.8,3573.9,2.79804]
[1733254528156,0.55,3574.8,3573.9,2.79804]
[1733254528370,0.55290944,3574.9,3573.9,0.279804]
[1733254528536,0.29221932,3574.9,3573.9,2.79804]
[1733254528863,0.29221932,3574.9,3573.8,2.79814]
[1733254529063,0.55290944,3574.9,3573.8,2.79814]
[1733254529561,0.55290944,3574.9,3573.9,2.79804]
[1733254529857,0.55290944,3574.9,3574.0,0.279804]
[1733254531053,0.55290944,3574.9,3574.1,0.8239]
[1733254531268,0.29221932,3574.9,3574.2,2.79775]
[1733254531573,0.55,3574.8,3573.5,0.7733]
[1733254531775,2.83377882,3574.7,3573.2,1.13703788]
[1733254531941,0.55,3574.2,3573.2,3.5719]
[1733254532142,0.55,3574.2,3573.0,2.79875]
[1733254532349,0.81061209,3574.5,3573.0,2.79875]
[1733254532658,2.79789,3574.2,3573.0,2.79875]
[1733254532839,3.05852209,3574.1,3573.0,2.79875]
[1733254533166,3.05852209,3574.1,3572.6,2.79904]
[1733254533167,2.79825,3573.7,3572.6,2.79904]
[1733254533342,0.55,3573.8,3572.7,2.79893]
[1733254533527,0.81049251,3573.8,3572.7,2.79893]
[1733254533724,0.55,3573.8,3572.7,2.79893]
[1733254533923,0.81049336,3573.8,3572.7,2.79893]
[1733254534166,1.21035837,3573.8,3572.7,3.161553]
[1733254534367,1.21025704,3573.8,3572.8,2.79892]
[1733254534573,0.94986501,3573.8,3572.8,2.79892]
[1733254534872,3.74804501,3573.8,3572.8,2.79892]
[1733254535673,0.0640309,3573.7,3572.8,2.79892]
[1733254536189,2.8622509,3573.7,3572.7,0.362623]
[1733254536688,0.55,3573.6,3572.7,0.362623]
[1733254536867,0.61449776,3573.6,3572.7,0.362623]
[1733254537065,0.61449776,3573.6,3572.7,3.161603]
[1733254537266,0.61449776,3573.6,3572.8,0.3161603]
[1733254538283,0.61449776,3573.6,3572.8,3.1150403]
[1733254538594,0.61449776,3573.6,3572.9,2.79877]
[1733254539768,0.06449776,3573.6,3572.9,2.79877]
[1733254540115,0.26017296,3574.2,3572.9,3.61507882]
[1733254540398,0.12748221,3573.5,3573.3,2.79852]
[1733254540559,3.93670976,3574.3,3573.3,2.79852]
[1733254540759,0.12718264,3573.4,3573.1,2.79868]
[1733254541054,2.79784,3574.2,3573.2,0.68068827]
[1733254541260,0.12718264,3574.1,3573.1,2.79868]
[1733254541559,0.12718264,3574.1,3573.2,2.79859]
[1733254541759,0.12718264,3574.1,3573.3,2.79852]
[1733254543559,0.12718264,3574.1,3573.0,0.39312391]
[1733254543860,0.12718264,3574.1,3573.1,2.79869]
[1733254544077,0.12718264,3574.1,3573.2,3.75910027]
[1733254544301,0.12718264,3574.1,3573.3,2.79853]
[1733254544610,0.12718264,3574.1,3573.5,2.79837]
[1733254544809,0.12718264,3574.1,3573.5,2.7983]
[1733254544962,0.12718264,3574.1,3573.7,2.79815]
[1733254545260,0.29224557,3574.4,3573.9,2.79805]
[1733254545676,0.06239193,3574.3,3573.9,2.79805]
[1733254546130,0.06239193,3574.3,3573.8,0.279815]
[1733254546291,0.06239193,3574.3,3573.9,2.79805]
[1733254547317,0.06239193,3574.3,3574.2,2.79782]
[1733254547618,0.26064477,3575.0,3574.3,2.79775]
[1733254547919,0.29219943,3574.9,3574.1,2.79787]
[1733254548077,0.61463511,3574.9,3574.1,2.79787]
[1733254548274,0.61463511,3574.9,3573.8,0.279815]
[1733254548275,0.26101258,3574.8,3573.8,0.279815]
[1733254548478,0.32305893,3574.7,3574.1,2.79789]
[1733254548784,0.06204635,3574.7,3574.2,2.82572548]
[1733254549118,0.06204635,3574.7,3574.3,2.79773]
[1733254549293,0.29219943,3574.9,3574.3,2.79773]
[1733254549613,0.0617802,3574.6,3574.3,2.79773]
[1733254549801,0.55324099,3574.9,3574.1,3.1056605]
[1733254550139,0.06260826,3574.5,3574.1,3.1056605]
[1733254550323,0.06260826,3574.5,3574.2,0.31056605]
[1733254550494,0.06260826,3574.5,3574.2,2.79781]
[1733254550695,0.06235179,3574.4,3574.2,2.79781]
[1733254550884,0.26104918,3574.8,3574.2,2.79781]
[1733254551084,0.06267861,3574.3,3574.2,2.79781]
[1733254551280,0.29219943,3574.9,3574.3,2.79769]
[1733254551501,0.32287615,3574.8,3574.3,2.79769]
[1733254551906,0.0618632,3574.8,3574.3,2.79769]
[1733254552307,0.0618632,3574.8,3574.4,2.79765]
[1733254552703,0.55319938,3574.9,3574.2,0.7829]
[1733254552704,0.29219943,3574.9,3574.2,0.7829]
[1733254552903,0.55320284,3574.9,3574.2,0.7829]
[1733254553109,0.0624252,3574.8,3574.4,2.7976]
[1733254553416,0.0624252,3574.8,3573.9,2.79806]
[1733254553720,0.26100341,3574.7,3573.9,2.79806]
[1733254554020,0.32344376,3574.7,3573.9,2.79806]
[1733254556039,0.26100341,3574.6,3573.9,2.79806]
[1733254556391,0.0623194,3574.5,3573.9,2.79806]
[1733254556895,0.26100341,3574.7,3573.6,0.7829]
[1733254557103,0.06276802,3574.4,3574.0,2.79796]
[1733254557299,0.26100341,3574.8,3574.0,2.79796]
[1733254557502,0.29219943,3574.9,3574.0,2.79796]
[1733254557503,0.06294069,3574.3,3574.0,2.79796]
[1733254557704,0.26100341,3574.8,3574.0,2.79796]
[1733254557899,0.06301906,3574.2,3574.0,2.79796]
[1733254558104,0.26100341,3574.8,3574.0,2.79796]
[1733254558333,0.06314459,3574.1,3574.0,2.79796]
[1733254558629,0.26100341,3574.6,3574.0,2.79796]
[1733254558955,0.06268966,3574.5,3574.0,2.79796]
[1733254559228,0.26100341,3574.7,3574.0,2.79796]
[1733254559534,0.26100341,3574.6,3573.7,0.66166788]
[1733254559826,0.06237176,3574.6,3573.9,2.79806]
[1733254560209,0.26100341,3574.6,3573.9,2.79806]
[1733254560453,0.29219943,3574.9,3573.9,2.79806]
[1733254560454,0.06249726,3574.5,3573.9,2.79806]
[1733254560757,0.26100341,3574.6,3573.9,3.22232279]
[1733254560964,0.06262276,3574.4,3573.9,3.22232279]
[1733254561264,0.29219943,3574.9,3573.9,3.22232279]
[1733254561265,0.26100341,3574.7,3573.9,3.22232279]
[1733254561559,0.26100341,3574.6,3574.0,2.79795]
[1733254561758,0.06241874,3574.6,3574.1,2.7979]
[1733254561927,0.26100341,3574.7,3574.1,2.7979]
[1733254562122,0.06287191,3574.5,3573.9,2.79804]
[1733254562363,0.26100341,3574.8,3573.9,2.79804]
[1733254562525,3.08949943,3574.9,3573.9,2.79804]
[1733254562526,0.06285646,3574.4,3573.9,2.79804]
[1733254562859,0.26100341,3574.6,3573.9,2.79804]
[1733254563059,0.06299725,3574.3,3574.0,2.79798]
[1733254563271,0.26100341,3574.7,3574.0,2.79798]
[1733254563555,0.29219943,3574.9,3574.0,2.79798]
[1733254563556,0.32320223,3574.6,3574.0,2.79798]
[1733254563758,0.06219882,3574.6,3574.0,2.79798]
[1733254563963,0.26100341,3574.7,3574.0,2.79798]
[1733254564177,0.06227717,3574.5,3574.0,2.79798]
[1733254564337,0.06210683,3574.6,3574.0,2.79798]
[1733254564538,0.26100341,3574.7,3574.0,2.79798]
[1733254564770,0.06227717,3574.5,3574.2,2.79775]
[1733254564935,0.26100341,3574.8,3574.4,2.79767]
[1733254565132,0.26087973,3574.8,3574.4,2.79767]
[1733254565337,0.29219943,3574.9,3574.4,2.79767]
[1733254565778,0.55311076,3574.9,3574.4,2.79767]
[1733254565951,0.29219943,3574.9,3574.4,2.79767]
[1733254566156,0.55311076,3574.9,3574.4,2.79767]
[1733254566460,0.29219943,3574.9,3574.1,0.7841]
[1733254566665,0.55311076,3574.9,3574.2,2.79776]
[1733254566837,0.26091133,3574.8,3574.2,2.79776]
[1733254567375,0.29219943,3574.9,3574.2,2.79776]
[1733254567537,0.26101328,3574.8,3574.2,2.79776]
[1733254567848,0.29219943,3574.9,3574.0,3.077748]
[1733254568039,0.26100837,3574.8,3574.1,2.79788]
[1733254568374,0.26100837,3574.8,3573.8,0.7541]
[1733254568375,0.26100837,3574.7,3573.9,2.79805]
[1733254568582,0.35052456,3574.8,3573.5,0.7541]
[1733254568879,2.7977,3574.4,3573.5,2.79833]
[1733254569084,3.05882306,3574.3,3573.2,0.7541]
[1733254569375,2.79792,3574.1,3573.1,2.79868]
[1733254569676,2.79815,3573.8,3572.5,3.56756]
[1733254569981,2.79815,3573.8,3572.6,2.79908]
[1733254570281,2.79815,3573.8,3572.4,2.83377882]
[1733254570282,0.0635971,3573.7,3572.9,2.79884]
[1733254570483,0.0635971,3573.7,3573.1,2.79861]
[1733254570679,0.0635971,3573.7,3573.0,1.38986036]
[1733254570680,0.06337752,3573.6,3573.2,2.7986]
[1733254571176,0.06335427,3573.5,3573.0,4.18855036]
[1733254571379,2.79799,3574.0,3573.1,2.79868]
[1733254571538,0.06347985,3573.4,3572.9,2.79882]
[1733254571740,0.26104108,3573.8,3572.7,3.55668]
[1733254571974,3.3479,3574.1,3572.7,2.79898]
[1733254572142,2.7983,3573.6,3572.7,2.79898]
[1733254572648,0.0635564,3573.5,3572.4,0.7577]
[1733254572851,0.0635564,3573.5,3572.7,2.79893]
[1733254573055,0.36401396,3574.0,3572.7,2.79893]
[1733254573056,0.26093456,3573.6,3572.7,2.79893]
[1733254573250,0.06287745,3573.4,3572.4,0.7577]
[1733254573455,0.06320052,3573.5,3572.8,2.79891]
[1733254573675,0.06358866,3573.3,3572.8,2.79891]
[1733254573983,0.06327007,3573.2,3572.5,0.66707208]
[1733254574184,0.26086265,3573.6,3572.7,2.799]
[1733254574341,0.06329906,3573.1,3572.7,2.799]
[1733254574536,2.79823,3573.7,3572.7,3.22137721]
[1733254574737,0.26081388,3573.6,3572.7,3.22137721]
[1733254574992,3.0591853,3573.5,3572.7,0.42237721]
[1733254575142,2.79824,3573.7,3572.7,3.22136721]
[1733254575483,0.06325453,3573.4,3572.8,2.79892]
[1733254575784,0.32332363,3573.6,3572.8,2.79892]
[1733254575951,2.79814,3573.8,3572.8,2.79892]
[1733254575952,0.06342956,3573.3,3572.8,2.79892]
[1733254576144,0.26072401,3573.7,3572.8,2.79892]
[1733254576339,0.06315134,3573.2,3572.8,2.79892]
[1733254576539,0.26072401,3573.7,3572.9,0.279892]